fUST/lending_fUST_20241004
["ID","MTS","AMOUNT","RATE_DAILY","PERIOD"]
[339808336,1727998251840,-500.0,0.00013852,2]
[339808337,1727998251850,-500.0,0.0001388,2]
[339808338,1727998251859,-500.0,0.00013907,2]
[339808339,1727998251868,-168.549575,0.00013932,2]
[339808340,1727998251877,-589.956573,0.00013932,2]
[339808341,1727998251886,-681.968491,0.00013932,2]
[339808342,1727998251896,-241.085852,0.00013932,2]
[339808343,1727998251905,-202.392207,0.00013932,2]
[339808344,1727998251917,-500.0,0.00013935,2]
[339808345,1727998251927,-499.68415976,0.00013947,2]
[339808346,1727998251937,-508.49768438,0.00013947,2]
[339808347,1727998251947,-1500.0,0.00013947,2]
[339808348,1727998251959,-500.0,0.00013962,2]
[339808349,1727998251968,-500.0,0.00013969,2]
[339808350,1727998251978,-500.0,0.00013989,2]
[339808351,1727998251988,-83911.54474535,0.00013999,2]
[339808352,1727998251999,-500.0,0.00014,2]
[339808353,1727998252009,-500.0,0.00014,2]
[339808354,1727998252019,-500.0,0.00014,2]
[339808355,1727998252028,-500.0,0.00014,2]
[339808356,1727998252038,-500.0,0.00014,2]
[339808357,1727998252047,-500.0,0.00014,2]
[339808358,1727998252058,-452.0,0.00014,2]
[339808359,1727998252068,-226.8733837,0.00014,2]
[339808360,1727998252078,-576.63313202,0.00014,2]
[339808361,1727998252088,-28578.25771545,0.00014,2]
[339808362,1727998252097,-200.0,0.00014,2]
[339808363,1727998252106,-500.0,0.00014,2]
[339808364,1727998252116,-500.0,0.00014,2]
[339808365,1727998252125,-56258.11273403,0.00014,2]
[339808366,1727998252429,-1283.49851302,0.00014,2]
[339808367,1727998253298,-1319.98062318,0.00013421,2]
[339808373,1727999232140,-1434.4786627,0.00012488,2]
[339808374,1727999232164,-168.847033,0.00012551,2]
[339808375,1727999232185,-323.771081,0.00012586,2]
[339808376,1727999232205,-227.22908,0.00012603,2]
[339808377,1727999232228,-168.847033,0.0001266,2]
[339808378,1727999232251,-168.847033,0.00012769,2]
[339808379,1727999232274,-168.847033,0.00012878,2]
[339808380,1727999232295,-168.847033,0.00012987,2]
[339808381,1727999232317,-168.847033,0.00013096,2]
[339808382,1727999232339,-168.847033,0.00013205,2]
[339808383,1727999232361,-963.1504386,0.000133,2]
[339808384,1727999232383,-203.221684,0.00013428,2]
[339808385,1727999232407,-300.0,0.00013491,2]
[339808386,1727999232667,-300.0,0.00013491,2]
[339808387,1727999232689,-452.440031,0.00013492,2]
[339808388,1727999232709,-151.0,0.00013492,2]
[339808389,1727999232730,-72.83021682,0.00013492,2]
[339808421,1727999432521,-151.0,0.00013492,2]
[339808422,1727999432532,-151.0,0.00013492,2]
[339808423,1727999432542,-151.0,0.00013502,2]
[339808424,1727999432554,-151.0,0.00013502,2]
[339808425,1727999432564,-151.0,0.00013502,2]
[339808426,1727999432573,-262.254828,0.00013502,2]
[339808427,1727999432584,-151.0,0.00013507,2]
[339808428,1727999432600,-151.0,0.00013512,2]
[339808429,1727999432611,-256.979314,0.00013512,2]
[339808430,1727999432621,-225.0,0.0001353,2]
[339808431,1727999432632,-500.0,0.00013695,2]
[339808432,1727999432644,-500.0,0.00013695,2]
[339808433,1727999432656,-300.0,0.00013698,2]
[339808434,1727999432665,-166.666666,0.00013699,2]
[339808435,1727999432674,-194.6225459,0.00013699,2]
[339808436,1727999432684,-1729.715423,0.00013699,2]
[339808437,1727999432695,-908.18,0.000137,2]
[339808438,1727999432704,-500.0,0.00013722,2]
[339808440,1727999432715,-500.0,0.0001375,2]
[339808441,1727999432724,-1104.2512231,0.00013768,2]
[339808442,1727999432736,-1469.32191453,0.00013768,2]
[339808454,1727999438385,-876.9399101,0.00013768,2]
[339808455,1727999438396,-1310.10708835,0.00013768,2]
[339808456,1727999438447,-1811.44649124,0.00013768,2]
[339808457,1727999438457,-963.1504386,0.000138,2]
[339808458,1727999438467,-150.0,0.00013803,2]
[339808459,1727999438478,-525.0,0.00013803,2]
[339808460,1727999438489,-1127.21999541,0.00013803,2]
[339808467,1727999440450,-90.78000459,0.00013803,2]
[339808468,1727999440461,-150.0,0.00013803,2]
[339808469,1727999440470,-1453.28699348,0.00013899,2]
[339808470,1727999440481,-843.0,0.000139,2]
[339808471,1727999440490,-500.0,0.00013969,2]
[339808472,1727999440499,-4406.96902091,0.00013999,2]
[339808473,1727999440511,-226.8733837,0.00014,2]
[339808474,1727999440520,-500.0,0.00014,2]
[339808475,1727999440530,-200.0,0.00014,2]
[339808476,1727999440540,-500.0,0.00014,2]
[339808477,1727999440550,-618.51029544,0.00014,2]
[339808478,1727999440561,-14717.76411132,0.00014,2]
[339808479,1727999440570,-2317.72466504,0.00014,2]
[339808480,1727999440580,-166.666666,0.00014019,2]
[339808481,1727999440590,-386.15978828,0.00014059,2]
[339808482,1727999440599,-500.0,0.00014059,2]
[339808483,1727999440617,-500.0,0.00014059,2]
[339808484,1727999440632,-500.0,0.00014059,2]
[339808485,1727999440642,-500.0,0.00014059,2]
[339808486,1727999440653,-173.46816157,0.00014059,2]
[339808487,1727999440663,-168.549575,0.00014059,2]
[339808488,1727999440673,-175.601553,0.00014059,2]
[339808489,1727999440684,-24728.7895876,0.0001406,2]
[339808490,1727999440695,-24728.7895876,0.0001409,2]
[339808491,1727999440709,-282.021928,0.000141,2]
[339808492,1727999440720,-187.308322,0.000141,2]
[339808493,1727999440731,-168.549575,0.000141,2]
[339808494,1727999440743,-589.956573,0.000141,2]
[339808495,1727999440753,-681.968491,0.000141,2]
[339808496,1727999440763,-241.085852,0.000141,2]
[339808497,1727999440774,-202.392207,0.000141,2]
[339808498,1727999440784,-187.308324,0.000141,2]
[339808499,1727999440795,-187.308322,0.000141,2]
[339808500,1727999440804,-173.886322,0.000141,2]
[339808501,1727999440814,-187.308323,0.000141,2]
[339808502,1727999440825,-203.221684,0.000141,2]
[339808503,1727999440838,-183.148358,0.000141,2]
[339808504,1727999440850,-266.11682612,0.00014114,2]
[339808505,1727999440860,-465.91992623,0.000142,2]
[339808506,1727999440872,-500.0,0.00014243,2]
[339808507,1727999440882,-500.0,0.00014243,2]
[339808508,1727999440891,-500.0,0.00014243,2]
[339808509,1727999440902,-208.13881085,0.00014243,2]
[339808510,1727999440911,-302.69358074,0.00014243,2]
[339808511,1727999440921,-500.0,0.00014243,2]
[339808512,1727999440933,-641.79681191,0.00014243,2]
[339808513,1727999440944,-500.0,0.00014243,2]
[339808514,1727999440954,-500.0,0.00014243,2]
[339808515,1727999440965,-500.0,0.00014243,2]
[339808516,1727999440975,-500.0,0.00014243,2]
[339808517,1727999440985,-500.0,0.00014243,2]
[339808518,1727999440997,-500.0,0.00014243,2]
[339808519,1727999441007,-500.0,0.00014243,2]
[339808520,1727999441017,-500.0,0.00014243,2]
[339808521,1727999441028,-500.0,0.00014243,2]
[339808522,1727999441038,-500.0,0.00014243,2]
[339808523,1727999441049,-500.0,0.00014243,2]
[339808524,1727999441058,-500.0,0.00014243,2]
[339808525,1727999441068,-500.0,0.00014243,2]
[339808526,1727999441079,-500.0,0.00014243,2]
[339808527,1727999441089,-500.0,0.00014243,2]
[339808528,1727999441099,-360.26070082,0.00014243,2]
[339808529,1727999441109,-500.0,0.00014243,2]
[339808530,1727999441120,-500.0,0.00014243,2]
[339808531,1727999441130,-109.911019,0.00014243,2]
[339808552,1727999443618,-150.0,0.00013803,2]
[339808554,1727999443630,-390.088981,0.00014243,2]
[339808556,1727999443640,-1005.72934232,0.00014244,2]
[339808567,1727999446500,-150.0,0.00013803,2]
[339808568,1727999446512,-127.34605672,0.00014244,2]
[339808569,1727999446556,-6348.16090826,0.00014244,2]
[339808668,1728000638576,-227.210958,0.00012603,2]
[339808669,1728000638586,-1123.8744212,0.00012874,2]
[339808670,1728000638595,-2118.0135036,0.0001288,2]
[339808671,1728000638604,-180.51124,0.00013206,2]
[339808672,1728000638613,-180.51124,0.00013343,2]
[339808673,1728000638623,-300.0,0.00013427,2]
[339808674,1728000638632,-300.0,0.00013427,2]
[339808675,1728000638641,-222.089781,0.00013428,2]
[339808676,1728000638651,-161.162939,0.00013428,2]
[339808677,1728000638661,-193.185023,0.00013428,2]
[339808678,1728000638670,-187.308323,0.00013428,2]
[339808679,1728000638679,-173.886322,0.00013428,2]
[339808680,1728000638689,-202.392207,0.00013428,2]
[339808681,1728000638699,-222.072533,0.00013428,2]
[339808682,1728000638709,-208.105615,0.00013428,2]
[339808683,1728000638717,-180.51124,0.00013481,2]
[339808684,1728000638726,-577.8902632,0.0001349,2]
[339808685,1728000638736,-222.089781,0.00013596,2]
[339808686,1728000638745,-222.072533,0.00013596,2]
[339808687,1728000638755,-208.105615,0.00013596,2]
[339808688,1728000638764,-180.51124,0.00013618,2]
[339808689,1728000638773,-161.162939,0.00013652,2]
[339808690,1728000638782,-166.666666,0.00013699,2]
[339808691,1728000638791,-1153.143615,0.00013699,2]
[339808692,1728000638801,-817.36,0.000137,2]
[339808693,1728000638810,-168.43425723,0.00013756,2]
[339808694,1728000638822,-12.07698277,0.00013756,2]
[339808695,1728000638831,-222.089781,0.00013764,2]
[339808696,1728000638840,-53.22154623,0.00013764,2]
[339808700,1728000640672,-150.0,0.000128,2]
[339808701,1728000640682,-168.85098677,0.00013764,2]
[339808702,1728000640692,-208.105615,0.00013764,2]
[339808703,1728000640703,-187.308323,0.00013764,2]
[339808704,1728000640713,-230.0,0.0001377,2]
[339808705,1728000640722,-150.0,0.00013827,2]
[339808706,1728000640732,-150.0,0.00013827,2]
[339808707,1728000640742,-150.0,0.00013827,2]
[339808708,1728000640751,-525.0,0.00013827,2]
[339808709,1728000640761,-150.0,0.00013827,2]
[339808710,1728000640771,-1218.0,0.00013827,2]
[339808711,1728000640781,-161.162939,0.00013876,2]
[339808712,1728000640791,-180.51124,0.00013894,2]
[339808713,1728000640801,-97.67572665,0.00013896,2]
[339808714,1728000640813,-1461.00000922,0.00013896,2]
[339808740,1728000643602,-1516.79333898,0.00013896,2]
[339808742,1728000643614,-2036.6144943,0.00013896,2]
[339808751,1728000643705,-2082.96121656,0.00013896,2]
[339808753,1728000643715,-222.089781,0.00013932,2]
[339808755,1728000643727,-74.39900247,0.00013932,2]
[339808757,1728000643739,-147.67353053,0.00013932,2]
[339808759,1728000643751,-208.105615,0.00013932,2]
[339808760,1728000643760,-577.8902632,0.0001399,2]
[339808761,1728000643771,-166.666666,0.00014019,2]
[339808762,1728000643781,-222.089781,0.000141,2]
[339808763,1728000643790,-61.25082828,0.000141,2]
[339808764,1728000643802,-160.82170472,0.000141,2]
[339808765,1728000643812,-208.105615,0.000141,2]
[339808766,1728000643821,-193.185023,0.000141,2]
[339808767,1728000643832,-31.77231264,0.000141,2]
[339808770,1728000646617,-155.53601036,0.000141,2]
[339808771,1728000646627,-161.162939,0.000141,2]
[339808772,1728000646638,-465.92002115,0.00014164,2]
[339808773,1728000646648,-312.26830489,0.00014178,2]
[339808774,1728000646660,-959.35781444,0.00014178,2]
[339808775,1728000646670,-500.0,0.00014229,2]
[339808776,1728000646680,-500.0,0.00014229,2]
[339808777,1728000646689,-500.0,0.00014236,2]
[339808778,1728000646698,-380.00171107,0.00014236,2]
[339808779,1728000646710,-500.0,0.00014244,2]
[339808780,1728000646720,-500.0,0.00014244,2]
[339808781,1728000646729,-1064.314,0.00014244,2]
[339808782,1728000646741,-500.0,0.00014246,2]
[339808783,1728000646750,-500.0,0.00014275,2]
[339808784,1728000646759,-500.0,0.00014278,2]
[339808785,1728000646769,-267.00086101,0.00014278,2]
[339808786,1728000646778,-738.11076658,0.00014278,2]
[339808787,1728000646788,-166.666666,0.0001434,2]
[339808788,1728000646797,-600.31127679,0.0001437,2]
[339808789,1728000646806,-201.0,0.00014384,2]
[339808790,1728000646816,-1153.143615,0.00014384,2]
[339808791,1728000646826,-577.8902632,0.0001449,2]
[339808792,1728000646835,-500.0,0.0001452,2]
[339808793,1728000646846,-150.0,0.00014601,2]
[339808794,1728000646855,-166.666666,0.0001466,2]
[339808795,1728000646865,-230.0,0.0001471,2]
[339808796,1728000646875,-420.0,0.00014719,2]
[339808797,1728000646885,-500.0,0.00014794,2]
[339808798,1728000646895,-5484.09598332,0.00014819,2]
[339808799,1728000646905,-465.04600106,0.00014873,2]
[339808800,1728000646914,-502.23900011,0.000149,2]
[339808801,1728000646924,-1406.22689314,0.000149,7]
[339808802,1728000646934,-430.12391256,0.000149,5]
[339808803,1728000646943,-166.666666,0.00014981,2]
[339808804,1728000646953,-577.8902632,0.0001499,2]
[339808805,1728000646962,-500.0,0.00014999,2]
[339808806,1728000646972,-157.05942927,0.00014999,2]
[339808807,1728000646981,-500.0,0.00014999,2]
[339808808,1728000646991,-1000.0,0.00015,15]
[339808809,1728000647000,-2618.50922035,0.00015,2]
[339808810,1728000647009,-4329.81788348,0.00015,2]
[339808811,1728000647019,-9758.24263473,0.00015,10]
[339808812,1728000647033,-10457.79064275,0.00015,10]
[339808813,1728000647043,-3953.0,0.00015,5]
[339808814,1728000647053,-500.0,0.00015068,2]
[339808815,1728000647062,-1153.143615,0.00015068,2]
[339808816,1728000647072,-1007.65264399,0.000152,3]
[339808817,1728000647081,-500.0,0.00015273,2]
[339808818,1728000647091,-166.666666,0.00015301,2]
[339808819,1728000647101,-500.0,0.00015342,2]
[339808820,1728000647112,-577.8902632,0.0001549,2]
[339808821,1728000647122,-500.0,0.00015547,2]
[339808822,1728000647132,-500.0,0.00015616,2]
[339808823,1728000647141,-465.00230005,0.00015616,2]
[339808824,1728000647151,-230.0,0.0001564,2]
[339808825,1728000647160,-150.0,0.000157,2]
[339808826,1728000647170,-500.0,0.00015706,2]
[339808827,1728000647181,-208.13881085,0.00015706,2]
[339808828,1728000647191,-500.0,0.00015706,2]
[339808829,1728000647200,-302.69358074,0.00015706,2]
[339808830,1728000647211,-454.993068,0.00015706,2]
[339808831,1728000647240,-45.006932,0.00015706,2]
[339808832,1728000647250,-500.0,0.00015706,2]
[339808833,1728000647259,-500.0,0.00015706,2]
[339808834,1728000647269,-500.0,0.00015706,2]
[339808835,1728000647278,-500.0,0.00015706,2]
[339808836,1728000647288,-500.0,0.00015706,2]
[339808837,1728000647297,-500.0,0.00015706,2]
[339808838,1728000647307,-500.0,0.00015706,2]
[339808839,1728000647317,-318.49423991,0.00015706,2]
[339808840,1728000647326,-214.50398263,0.00015706,2]
[339808841,1728000647338,-285.49601737,0.00015706,2]
[339808842,1728000647347,-500.0,0.00015706,2]
[339808843,1728000647357,-500.0,0.00015706,2]
[339808844,1728000647366,-0.61125519,0.00015706,2]
[339808846,1728000800399,1031.0,0.00010206,2]
[339808847,1728001038458,555.0,0.0002101,120]
[339808856,1728001404707,650.4,0.00021,120]
[339808863,1728001643151,-177.16,0.00010959,2]
[339808864,1728001643174,-158.4,0.00010959,2]
[339808865,1728001643196,-792.0,0.00010959,2]
[339808866,1728001643218,-215.85041,0.00012603,2]
[339808867,1728001643240,-735.62,0.000137,2]
[339808868,1728001643261,-166.666666,0.00013834,2]
[339808869,1728001643282,-204.301971,0.00013931,2]
[339808870,1728001643304,-204.301971,0.00014001,2]
[339808871,1728001643326,-150.0,0.00014029,2]
[339808872,1728001643348,-525.0,0.00014029,2]
[339808873,1728001643369,-1218.0,0.00014029,2]
[339808874,1728001643392,-159.8092743,0.0001404,2]
[339808875,1728001643414,-166.666666,0.00014211,2]
[339808876,1728001643435,-166.666666,0.00014588,2]
[339808877,1728001643456,-463.0,0.0001464,2]
[339808878,1728001643477,-300.0,0.00014899,2]
[339808879,1728001643498,-166.666666,0.00014965,2]
[339808880,1728001643522,-300.0,0.0001512,2]
[339808881,1728001643543,-189.38013662,0.00015121,2]
[339808883,1728001752155,-155.93367706,0.00010959,2]
[339808930,1728001831776,-215.834056,0.00012603,2]
[339808932,1728001831786,-168.549576,0.00013589,2]
[339808934,1728001831796,-45.85359499,0.00013589,2]
[339808936,1728001831811,-129.74795901,0.00013589,2]
[339808938,1728001831822,-166.666666,0.00013699,2]
[339808940,1728001831831,-169.0,0.00013999,2]
[339808942,1728001831842,-300.0,0.00013999,2]
[339808944,1728001831852,-915.42432261,0.00014,2]
[339808946,1728001831861,-576.63313202,0.00014,2]
[339808948,1728001831870,-938.81247932,0.00014,2]
[339808951,1728001831881,-1000.0,0.00014,2]
[339808953,1728001831896,-2188.18122135,0.00014,2]
[339808973,1728001837682,-2005.45239017,0.00014,2]
[339808974,1728001837695,-3040.49023364,0.00014,2]
[339808976,1728001839668,-4094.59441366,0.00014,2]
[339808977,1728001839728,-15310.72697731,0.00014,2]
[339808978,1728001839738,-166.666666,0.00014019,2]
[339808979,1728001839751,-266.11682612,0.00014114,2]
[339808980,1728001839761,-166.666666,0.0001434,2]
[339808981,1728001839771,-166.666666,0.0001466,2]
[339808982,1728001839780,-166.666666,0.00014981,2]
[339808983,1728001839790,-408.23310625,0.00015121,2]
[339808984,1728001839800,-500.0,0.00015121,2]
[339808985,1728001839809,-166.666666,0.00015301,2]
[339808986,1728001839819,-420.0,0.00015337,2]
[339808987,1728001839829,-152.03907526,0.00015361,2]
[339808988,1728001839838,-4079.98184572,0.00015412,2]
[339808989,1728001839848,-208.2131265,0.00015584,2]
[339808990,1728001839857,-213.95,0.00015608,2]
[339808991,1728001839866,-193.58380099,0.00015608,2]
[339808992,1728001839876,-500.0,0.00015673,2]
[339808993,1728001839885,-500.0,0.00015673,2]
[339808994,1728001839895,-179.92621913,0.00015673,2]
[339808995,1728001839904,-522.94596794,0.00015673,2]
[339808996,1728001839917,-500.0,0.00015673,2]
[339808997,1728001839927,-458.82529515,0.00015673,2]
[339808998,1728001839939,-41.17470485,0.00015673,2]
[339808999,1728001839948,-250.0,0.00015673,2]
[339809000,1728001839958,-500.0,0.00015673,2]
[339809001,1728001839968,-500.0,0.00015673,2]
[339809002,1728001839978,-500.0,0.00015673,2]
[339809003,1728001839987,-500.0,0.00015673,2]
[339809004,1728001839996,-500.0,0.00015673,2]
[339809005,1728001840005,-500.0,0.00015673,2]
[339809006,1728001840014,-500.0,0.00015673,2]
[339809007,1728001840024,-211.88550652,0.00015673,2]
[339809008,1728001840033,-500.0,0.00015673,2]
[339809009,1728001840042,-500.0,0.00015673,2]
[339809010,1728001840052,-500.0,0.00015673,2]
[339809011,1728001840062,-456.12134541,0.00015673,2]
[339809012,1728001840072,-12283.46854677,0.00015674,2]
[339809013,1728001840084,-32249.02702265,0.00015674,2]
[339809014,1728001840093,-24045.7114033,0.00015674,2]
[339809015,1728001840103,-2370.41933008,0.00015674,2]
[339809016,1728001840112,-29274.04157519,0.00015674,2]
[339809017,1728001840123,-32316.88159601,0.00015674,2]
[339809024,1728001842784,-1368.66726579,0.00015674,2]
[339809025,1728001842793,-2552.58796877,0.00015674,2]
[339809026,1728001842805,-800.0,0.00015674,2]
[339809027,1728001842816,-17318.73572889,0.00015674,2]
[339809030,1728001845782,-500.0,0.00015673,2]
[339809031,1728001845792,-24762.03715374,0.00015674,2]
[339809037,1728002825162,-205.042353,0.00012603,2]
[339809038,1728002825185,-161.162938,0.00013589,2]
[339809039,1728002825207,-255.409769,0.00013589,2]
[339809040,1728002825229,-203.221686,0.00013589,2]
[339809041,1728002825255,-250.0,0.000136,3]
[339809042,1728002825276,-166.666666,0.00013719,2]
[339809043,1728002825303,-255.409769,0.00013759,2]
[339809044,1728002825325,-662.06,0.000138,2]
[339809045,1728002825346,-161.162938,0.00013815,2]
[339809046,1728002825368,-255.409769,0.00013928,2]
[339809047,1728002825389,-482.38780283,0.00013932,2]
[339809048,1728002825410,-161.162938,0.00014042,2]
[339809049,1728002825434,-166.666666,0.00014093,2]
[339809050,1728002825457,-255.409769,0.00014098,2]
[339809051,1728002825478,-300.0,0.00014198,2]
[339809052,1728002825502,-300.0,0.00014198,2]
[339809053,1728002825522,-150.0,0.00014199,2]
[339809054,1728002825544,-525.0,0.00014199,2]
[339809055,1728002825566,-929.31987408,0.00014199,2]
[339809081,1728003031791,-206.151689,0.00012603,2]
[339809082,1728003031802,-595.85,0.000138,2]
[339809083,1728003031812,-167.630653,0.00013842,2]
[339809084,1728003031822,-167.630653,0.00013945,2]
[339809085,1728003031832,-167.630653,0.00014048,2]
[339809086,1728003031842,-167.630653,0.00014152,2]
[339809087,1728003031854,-288.68012592,0.00014199,2]
[339809088,1728003031864,-150.0,0.00014199,2]
[339809089,1728003031873,-150.0,0.00014199,2]
[339809090,1728003031883,-167.630653,0.00014255,2]
[339809091,1728003031891,-161.162938,0.00014268,2]
[339809092,1728003031901,-255.409769,0.00014268,2]
[339809093,1728003031913,-167.630653,0.00014358,2]
[339809094,1728003031923,-167.630653,0.00014461,2]
[339809095,1728003031935,-166.666666,0.00014467,2]
[339809096,1728003031947,-2000.0,0.000145,2]
[339809097,1728003031957,-167.630653,0.00014564,2]
[339809098,1728003031967,-166.666666,0.00014841,2]
[339809099,1728003031976,-3036.9831748,0.00014915,2]
[339809100,1728003031985,-300.0,0.00014999,2]
[339809101,1728003031994,-825.44,0.00015,2]
[339809102,1728003032004,-2000.0,0.00015,2]
[339809103,1728003032014,-166.666666,0.00015216,2]
[339809104,1728003032023,-3036.9831748,0.00015415,2]
[339809105,1728003032034,-3000.0,0.000155,2]
[339809106,1728003032043,-153.0,0.00015534,2]
[339809107,1728003032054,-153.0,0.00015534,2]
[339809108,1728003032064,-306.0,0.00015534,2]
[339809109,1728003032073,-153.0,0.00015534,2]
[339809110,1728003032083,-153.0,0.00015534,2]
[339809111,1728003032092,-852.3914549,0.00015569,2]
[339809112,1728003032102,-465.00011501,0.00015577,2]
[339809113,1728003032111,-166.666666,0.0001559,2]
[339809114,1728003032120,-1614.74,0.000156,2]
[339809115,1728003032129,-250.0,0.000156,3]
[339809116,1728003032138,-4079.98184573,0.0001561,2]
[339809117,1728003032147,-1349.94420024,0.0001565,2]
[339809118,1728003032158,-531.17371075,0.00015653,2]
[339809119,1728003032167,-548.73732888,0.00015673,2]
[339809120,1728003032177,-1504.0,0.00015674,2]
[339809121,1728003032186,-500.0,0.00015693,2]
[339809122,1728003032196,-500.0,0.00015693,2]
[339809123,1728003032205,-610.28288174,0.00015705,2]
[339809124,1728003032215,-1426.3740045,0.00015705,2]
[339809125,1728003032224,-2900.0,0.0001575,2]
[339809126,1728003032233,-206.982,0.00015804,2]
[339809127,1728003032243,-405.16575145,0.0001586,2]
[339809128,1728003032252,-405.16575133,0.00015863,2]
[339809129,1728003032262,-405.16575133,0.00015866,2]
[339809130,1728003032271,-405.16575133,0.00015869,2]
[339809131,1728003032280,-997.90440076,0.00015869,2]
[339809132,1728003032289,-7573.17496342,0.0001587,2]
[339809133,1728003032299,-405.16575133,0.00015871,2]
[339809134,1728003032309,-405.16575133,0.00015874,2]
[339809135,1728003032318,-405.16575133,0.00015877,2]
[339809136,1728003032329,-1794.5988105,0.0001588,2]
[339809137,1728003032339,-405.16575133,0.0001588,2]
[339809138,1728003032349,-1000.0,0.0001588,2]
[339809139,1728003032359,-405.16575133,0.00015883,2]
[339809140,1728003032370,-405.16575133,0.00015886,2]
[339809141,1728003032379,-405.16575133,0.00015889,2]
[339809142,1728003032389,-479.90425745,0.0001589,2]
[339809143,1728003032398,-405.16575133,0.00015891,2]
[339809144,1728003032409,-405.16575133,0.00015894,2]
[339809145,1728003032418,-405.16575133,0.00015897,2]
[339809146,1728003032427,-405.16575133,0.000159,2]
[339809147,1728003032436,-997.90440076,0.00015913,2]
[339809148,1728003032446,-3036.9831748,0.00015915,2]
[339809149,1728003032455,-500.0,0.00015948,2]
[339809150,1728003032464,-500.0,0.00015948,2]
[339809151,1728003032473,-329.03514682,0.00015948,2]
[339809152,1728003032483,-500.0,0.00015948,2]
[339809153,1728003032492,-500.0,0.00015948,2]
[339809154,1728003032502,-450.0,0.00015948,2]
[339809155,1728003032512,-434.41534259,0.00015948,2]
[339809156,1728003032522,-500.0,0.00015948,2]
[339809157,1728003032531,-500.0,0.00015948,2]
[339809158,1728003032541,-500.0,0.00015948,2]
[339809159,1728003032550,-500.0,0.00015948,2]
[339809160,1728003032559,-411.85200934,0.00015948,2]
[339809161,1728003032568,-500.0,0.00015948,2]
[339809162,1728003032578,-500.0,0.00015948,2]
[339809163,1728003032587,-500.0,0.00015948,2]
[339809164,1728003032597,-500.0,0.00015948,2]
[339809165,1728003032606,-500.0,0.00015948,2]
[339809166,1728003032616,-500.0,0.00015948,2]
[339809167,1728003032626,-500.0,0.00015948,2]
[339809168,1728003032635,-500.0,0.00015948,2]
[339809169,1728003032645,-500.0,0.00015948,2]
[339809170,1728003032654,-500.0,0.00015948,2]
[339809171,1728003032664,-500.0,0.00015948,2]
[339809172,1728003032673,-500.0,0.00015948,2]
[339809173,1728003032683,-350.0,0.00015948,2]
[339809174,1728003032692,-500.0,0.00015948,2]
[339809175,1728003032701,-72740.7669583,0.00015949,2]
[339809176,1728003032710,-7111.25799003,0.00015949,2]
[339809177,1728003032721,-48493.8446389,0.0001595,2]
[339809178,1728003032730,-4740.83866002,0.0001595,2]
[339809179,1728003032739,-151.0,0.0001595,2]
[339809180,1728003032748,-151.0,0.0001595,2]
[339809181,1728003032758,-24246.9223195,0.0001595,2]
[339809182,1728003032767,-2370.41933001,0.0001595,2]
[339809183,1728003032777,-311.82407372,0.00015957,2]
[339809184,1728003032786,-108712.715761,0.00015959,2]
[339809185,1728003032796,-199.404599,0.00015959,2]
[339809186,1728003032805,-151.0,0.00015959,2]
[339809187,1728003032814,-151.0,0.00015959,2]
[339809188,1728003032823,-151.0,0.00015959,2]
[339809189,1728003032833,-151.0,0.00015959,2]
[339809190,1728003032843,-151.0,0.00015959,2]
[339809191,1728003032852,-151.0,0.00015959,2]
[339809192,1728003032864,-290.908185,0.00015959,2]
[339809193,1728003032873,-290.908185,0.00015959,2]
[339809194,1728003032883,-151.0,0.00015959,2]